[Event "Titled Tuesday Blitz December 7 2021"]
[White "Pulpan, Jakub"]
[Black "Gunduz, Umut Erdem"]
[WhiteFideId "302759"]
[BlackFideId "6381383"]
[WhiteElo "2471"]
[BlackElo "2096"]
[Result "1-0"]
[Round "05"]
[TimeControl "180+1"]
[Date "2021.12.07"]
[WhiteClock "0:00:27"]
[BlackClock "0:00:01"]

1. e4 {[%clk 0:02:59]}  e5 {[%clk 0:03:00]} 2. Nf3 {[%clk 0:02:54]}  Nc6 {[%clk 0:03:00]} 3. Bc4 {[%clk 0:02:53]}  Bc5 {[%clk 0:03:00]} 4. c3 {[%clk 0:02:43]}  Nf6 {[%clk 0:02:59]} 5. d4 {[%clk 0:02:44]}  exd4 {[%clk 0:02:59]} 6. O-O {[%clk 0:02:44]}  O-O {[%clk 0:02:22]} 7. cxd4 {[%clk 0:02:27]}  Bb6 {[%clk 0:02:09]} 8. e5 {[%clk 0:02:06]}  d5 {[%clk 0:02:01]} 9. exf6 {[%clk 0:01:54]}  dxc4 {[%clk 0:01:59]} 10. fxg7 {[%clk 0:01:54]}  Re8 {[%clk 0:01:59]} 11. Bg5 {[%clk 0:01:55]}  f6 {[%clk 0:01:51]} 12. Be3 {[%clk 0:01:52]}  Bg4 {[%clk 0:01:44]} 13. Nbd2 {[%clk 0:01:51]}  Qd5 {[%clk 0:01:42]} 14. h3 {[%clk 0:01:48]}  Bh5 {[%clk 0:01:41]} 15. Qc2 {[%clk 0:01:47]}  Bf7 {[%clk 0:01:34]} 16. Rfd1 {[%clk 0:01:40]}  Kxg7 {[%clk 0:01:26]} 17. a3 {[%clk 0:01:30]}  Rad8 {[%clk 0:01:15]} 18. Rac1 {[%clk 0:01:29]}  Na5 {[%clk 0:00:59]} 19. Nh4 {[%clk 0:01:12]}  c6 {[%clk 0:00:56]} 20. Nf5+ {[%clk 0:01:12]}  Kh8 {[%clk 0:00:56]} 21. Nh6 {[%clk 0:01:08]}  Bg6 {[%clk 0:00:50]} 22. Qc3 {[%clk 0:01:08]}  Bd3 {[%clk 0:00:37]} 23. b4 {[%clk 0:01:05]}  Be2 {[%clk 0:00:15]} 24. Re1 {[%clk 0:01:00]}  Bd3 {[%clk 0:00:12]} 25. bxa5 {[%clk 0:00:53]}  Bxa5 {[%clk 0:00:13]} 26. Qb2 {[%clk 0:00:52]}  b5 {[%clk 0:00:10]} 27. Nf3 {[%clk 0:00:37]}  Bxe1 {[%clk 0:00:08]} 28. Rxe1 {[%clk 0:00:36]}  Rd7 {[%clk 0:00:08]} 29. Ng4 {[%clk 0:00:34]}  Rf8 {[%clk 0:00:05]} 30. Bh6 {[%clk 0:00:34]}  Rg8 {[%clk 0:00:03]} 31. Nxf6 {[%clk 0:00:32]}  Qxf3 {[%clk 0:00:01]} 32. Nxg8 {[%clk 0:00:32]}  Qf7 {[%clk 0:00:01]} 33. d5+ {[%clk 0:00:30]}  Kxg8 {[%clk 0:00:01]} 34. Re3 {[%clk 0:00:28]}  Rd6 {[%clk 0:00:01]} 35. Re8+ {[%clk 0:00:27]} 1-0


[Site "https://www.chess.com"]

[Event "Titled Tuesday Blitz December 7 2021"]
[White "Rakhmanov, Aleksandr"]
[Black "Svane, Rasmus"]
[WhiteFideId "4173708"]
[BlackFideId "4657101"]
[WhiteElo "2500"]
[BlackElo "2643"]
[Result "0-1"]
[Round "05"]
[TimeControl "180+1"]
[Date "2021.12.07"]
[WhiteClock "0:00:03"]
[BlackClock "0:00:09"]

1. d4 {[%clk 0:02:58]}  Nf6 {[%clk 0:03:00]} 2. c4 {[%clk 0:02:58]}  e6 {[%clk 0:03:00]} 3. Nc3 {[%clk 0:02:59]}  Bb4 {[%clk 0:03:00]} 4. e3 {[%clk 0:02:59]}  O-O {[%clk 0:03:00]} 5. Nf3 {[%clk 0:02:59]}  d6 {[%clk 0:02:57]} 6. Bd2 {[%clk 0:02:58]}  Nbd7 {[%clk 0:02:36]} 7. Qc2 {[%clk 0:02:55]}  e5 {[%clk 0:02:33]} 8. a3 {[%clk 0:02:52]}  Bxc3 {[%clk 0:02:32]} 9. Bxc3 {[%clk 0:02:53]}  Re8 {[%clk 0:02:28]} 10. Be2 {[%clk 0:02:26]}  Qe7 {[%clk 0:02:25]} 11. dxe5 {[%clk 0:01:54]}  Nxe5 {[%clk 0:02:19]} 12. h3 {[%clk 0:01:23]}  Bd7 {[%clk 0:01:38]} 13. Nd4 {[%clk 0:01:13]}  Nc6 {[%clk 0:01:24]} 14. Nb5 {[%clk 0:00:57]}  Rac8 {[%clk 0:01:21]} 15. Bxf6 {[%clk 0:00:56]}  Qxf6 {[%clk 0:01:20]} 16. Nc3 {[%clk 0:00:56]}  Bf5 {[%clk 0:01:15]} 17. Qd2 {[%clk 0:00:47]}  Qg6 {[%clk 0:01:13]} 18. g4 {[%clk 0:00:42]}  Bd7 {[%clk 0:01:01]} 19. Nd5 {[%clk 0:00:39]}  Ne7 {[%clk 0:00:46]} 20. Nf4 {[%clk 0:00:38]}  Qf6 {[%clk 0:00:44]} 21. h4 {[%clk 0:00:35]}  Ng6 {[%clk 0:00:45]} 22. g5 {[%clk 0:00:32]}  Qe5 {[%clk 0:00:38]} 23. Nxg6 {[%clk 0:00:25]}  hxg6 {[%clk 0:00:32]} 24. O-O-O {[%clk 0:00:25]}  b5 {[%clk 0:00:32]} 25. h5 {[%clk 0:00:23]}  bxc4 {[%clk 0:00:25]} 26. hxg6 {[%clk 0:00:24]}  fxg6 {[%clk 0:00:26]} 27. Bxc4+ {[%clk 0:00:23]}  Be6 {[%clk 0:00:27]} 28. Bxe6+ {[%clk 0:00:22]}  Rxe6 {[%clk 0:00:25]} 29. Rh4 {[%clk 0:00:22]}  Rf8 {[%clk 0:00:20]} 30. Rdh1 {[%clk 0:00:22]}  Qxg5 {[%clk 0:00:13]} 31. Qc2 {[%clk 0:00:20]}  c5 {[%clk 0:00:09]} 32. Kb1 {[%clk 0:00:19]}  Qf5 {[%clk 0:00:08]} 33. e4 {[%clk 0:00:19]}  Qf6 {[%clk 0:00:06]} 34. Ka2 {[%clk 0:00:15]}  Kf7 {[%clk 0:00:06]} 35. f4 {[%clk 0:00:14]}  Qe7 {[%clk 0:00:03]} 36. f5 {[%clk 0:00:14]}  Re5 {[%clk 0:00:03]} 37. Qc4+ {[%clk 0:00:13]}  Ke8 {[%clk 0:00:03]} 38. fxg6 {[%clk 0:00:10]}  Qe6 {[%clk 0:00:04]} 39. Qxe6+ {[%clk 0:00:08]}  Rxe6 {[%clk 0:00:05]} 40. Kb3 {[%clk 0:00:07]}  Rxg6 {[%clk 0:00:05]} 41. Kc4 {[%clk 0:00:07]}  Re6 {[%clk 0:00:05]} 42. Kd5 {[%clk 0:00:07]}  Kd7 {[%clk 0:00:06]} 43. Rh7 {[%clk 0:00:07]}  Re5+ {[%clk 0:00:06]} 44. Kc4 {[%clk 0:00:07]}  Rxe4+ {[%clk 0:00:07]} 45. Kd3 {[%clk 0:00:06]}  Rd4+ {[%clk 0:00:06]} 46. Ke3 {[%clk 0:00:06]}  Rf7 {[%clk 0:00:07]} 47. Rg1 {[%clk 0:00:06]}  Re7+ {[%clk 0:00:05]} 48. Kf3 {[%clk 0:00:06]}  Rd2 {[%clk 0:00:06]} 49. Rgxg7 {[%clk 0:00:05]}  Rxg7 {[%clk 0:00:07]} 50. Rxg7+ {[%clk 0:00:06]}  Kc6 {[%clk 0:00:08]} 51. b4 {[%clk 0:00:06]}  c4 {[%clk 0:00:06]} 52. Rxa7 {[%clk 0:00:05]}  c3 {[%clk 0:00:07]} 53. Ke3 {[%clk 0:00:03]}  Rd1 {[%clk 0:00:07]} 54. Ra8 {[%clk 0:00:02]}  Kb7 {[%clk 0:00:08]} 55. Re8 {[%clk 0:00:02]}  c2 {[%clk 0:00:08]} 56. Re7+ {[%clk 0:00:02]}  Kb6 {[%clk 0:00:08]} 57. Re8 {[%clk 0:00:03]}  c1=Q+ {[%clk 0:00:09]} 0-1


[Site "https://www.chess.com"]

[Event "Titled Tuesday Blitz December 7 2021"]
[White "Ronka, Erik"]
[Black "Shkapenko, Pavel"]
[WhiteFideId "505080"]
[BlackFideId "4151933"]
[WhiteElo "2264"]
[BlackElo "2386"]
[Result "0-1"]
[Round "05"]
[TimeControl "180+1"]
[Date "2021.12.07"]
[WhiteClock "0:00:07"]
[BlackClock "0:00:05"]

1. d4 {[%clk 0:03:00]}  Nf6 {[%clk 0:02:49]} 2. c4 {[%clk 0:03:00]}  e6 {[%clk 0:02:48]} 3. Nc3 {[%clk 0:03:01]}  Bb4 {[%clk 0:02:46]} 4. a3 {[%clk 0:03:01]}  Bxc3+ {[%clk 0:02:39]} 5. bxc3 {[%clk 0:03:02]}  c5 {[%clk 0:02:40]} 6. e3 {[%clk 0:03:03]}  Nc6 {[%clk 0:02:38]} 7. Bd3 {[%clk 0:03:03]}  O-O {[%clk 0:02:20]} 8. e4 {[%clk 0:02:59]}  cxd4 {[%clk 0:02:12]} 9. cxd4 {[%clk 0:02:58]}  d5 {[%clk 0:02:12]} 10. cxd5 {[%clk 0:02:38]}  exd5 {[%clk 0:02:10]} 11. e5 {[%clk 0:02:39]}  Ne4 {[%clk 0:02:07]} 12. Ne2 {[%clk 0:02:38]}  f6 {[%clk 0:01:57]} 13. exf6 {[%clk 0:01:39]}  Qxf6 {[%clk 0:01:54]} 14. O-O {[%clk 0:01:38]}  Nxd4 {[%clk 0:01:50]} 15. Bb2 {[%clk 0:01:33]}  Nxe2+ {[%clk 0:01:47]} 16. Qxe2 {[%clk 0:01:33]}  Qf7 {[%clk 0:01:08]} 17. Rac1 {[%clk 0:01:28]}  Bf5 {[%clk 0:01:07]} 18. Bd4 {[%clk 0:01:24]}  Nd6 {[%clk 0:01:03]} 19. Bc5 {[%clk 0:01:16]}  Rfe8 {[%clk 0:01:03]} 20. Qf3 {[%clk 0:01:07]}  Bxd3 {[%clk 0:00:53]} 21. Qxd3 {[%clk 0:01:07]}  Ne4 {[%clk 0:00:53]} 22. Bd4 {[%clk 0:01:06]}  b6 {[%clk 0:00:45]} 23. f3 {[%clk 0:01:05]}  Nd6 {[%clk 0:00:44]} 24. Rc6 {[%clk 0:01:01]}  Nc4 {[%clk 0:00:39]} 25. Qc3 {[%clk 0:00:30]}  Qd7 {[%clk 0:00:34]} 26. Rxc4 {[%clk 0:00:17]}  dxc4 {[%clk 0:00:35]} 27. Qxc4+ {[%clk 0:00:14]}  Qf7 {[%clk 0:00:35]} 28. Qb4 {[%clk 0:00:13]}  Rac8 {[%clk 0:00:34]} 29. h3 {[%clk 0:00:13]}  Qc4 {[%clk 0:00:33]} 30. Qb2 {[%clk 0:00:09]}  Re2 {[%clk 0:00:33]} 31. Qa1 {[%clk 0:00:08]}  Qc2 {[%clk 0:00:32]} 32. Bf2 {[%clk 0:00:07]}  Rd2 {[%clk 0:00:23]} 33. Qe5 {[%clk 0:00:07]}  Qc7 {[%clk 0:00:15]} 34. Qe6+ {[%clk 0:00:07]}  Kh8 {[%clk 0:00:15]} 35. Qe3 {[%clk 0:00:07]}  Rdd8 {[%clk 0:00:15]} 36. Re1 {[%clk 0:00:07]}  Qf7 {[%clk 0:00:14]} 37. Qg5 {[%clk 0:00:07]}  Re8 {[%clk 0:00:14]} 38. Rd1 {[%clk 0:00:06]}  h6 {[%clk 0:00:13]} 39. Qh4 {[%clk 0:00:06]}  Qf6 {[%clk 0:00:13]} 40. Qb4 {[%clk 0:00:05]}  Rcd8 {[%clk 0:00:13]} 41. Re1 {[%clk 0:00:05]}  Rxe1+ {[%clk 0:00:12]} 42. Qxe1 {[%clk 0:00:06]}  Qf7 {[%clk 0:00:11]} 43. Qe4 {[%clk 0:00:06]}  Re8 {[%clk 0:00:11]} 44. Qh4 {[%clk 0:00:05]}  Qe7 {[%clk 0:00:11]} 45. Qh5 {[%clk 0:00:04]}  Kg8 {[%clk 0:00:11]} 46. Qg6 {[%clk 0:00:04]}  Qf7 {[%clk 0:00:10]} 47. Qd3 {[%clk 0:00:04]}  Qf6 {[%clk 0:00:10]} 48. Qc4+ {[%clk 0:00:04]}  Qe6 {[%clk 0:00:10]} 49. Qf4 {[%clk 0:00:04]}  Rf8 {[%clk 0:00:09]} 50. Qd2 {[%clk 0:00:03]}  Rc8 {[%clk 0:00:09]} 51. Bd4 {[%clk 0:00:03]}  Rd8 {[%clk 0:00:09]} 52. Qf4 {[%clk 0:00:03]}  Qf7 {[%clk 0:00:08]} 53. Qe3 {[%clk 0:00:03]}  Re8 {[%clk 0:00:08]} 54. Qf2 {[%clk 0:00:03]}  Qd5 {[%clk 0:00:08]} 55. Be3 {[%clk 0:00:03]}  Qd1+ {[%clk 0:00:08]} 56. Kh2 {[%clk 0:00:04]}  Qd3 {[%clk 0:00:08]} 57. Bf4 {[%clk 0:00:04]}  Re2 {[%clk 0:00:08]} 58. Qg3 {[%clk 0:00:04]}  Kh7 {[%clk 0:00:06]} 59. Be5 {[%clk 0:00:04]}  Qg6 {[%clk 0:00:06]} 60. h4 {[%clk 0:00:03]}  Qxg3+ {[%clk 0:00:06]} 61. Kxg3 {[%clk 0:00:04]}  g6 {[%clk 0:00:06]} 62. Bd6 {[%clk 0:00:04]}  Kg7 {[%clk 0:00:05]} 63. Kf4 {[%clk 0:00:04]}  Kf7 {[%clk 0:00:05]} 64. g4 {[%clk 0:00:04]}  a6 {[%clk 0:00:06]} 65. Bc7 {[%clk 0:00:04]}  b5 {[%clk 0:00:06]} 66. Bd6 {[%clk 0:00:05]}  Ke6 {[%clk 0:00:06]} 67. Bb4 {[%clk 0:00:05]}  Ra2 {[%clk 0:00:05]} 68. h5 {[%clk 0:00:05]}  gxh5 {[%clk 0:00:05]} 69. gxh5 {[%clk 0:00:05]}  Rh2 {[%clk 0:00:06]} 70. Kg4 {[%clk 0:00:05]}  Kd5 {[%clk 0:00:06]} 71. Bf8 {[%clk 0:00:04]}  Ra2 {[%clk 0:00:04]} 72. Bxh6 {[%clk 0:00:04]}  Rxa3 {[%clk 0:00:04]} 73. Bg7 {[%clk 0:00:05]}  Ra2 {[%clk 0:00:05]} 74. h6 {[%clk 0:00:05]}  Rh2 {[%clk 0:00:05]} 75. Kg3 {[%clk 0:00:06]}  Rh1 {[%clk 0:00:04]} 76. f4 {[%clk 0:00:06]}  Ke4 {[%clk 0:00:04]} 77. Kg4 {[%clk 0:00:07]}  Rg1+ {[%clk 0:00:03]} 78. Kh5 {[%clk 0:00:07]}  Kf5 {[%clk 0:00:04]} 79. Kh4 {[%clk 0:00:06]}  Rh1+ {[%clk 0:00:04]} 80. Kg3 {[%clk 0:00:06]}  b4 {[%clk 0:00:04]} 81. Bf8 {[%clk 0:00:06]}  b3 {[%clk 0:00:04]} 82. Kg2 {[%clk 0:00:06]}  Rh5 {[%clk 0:00:04]} 83. Bg7 {[%clk 0:00:06]}  a5 {[%clk 0:00:04]} 84. Bb2 {[%clk 0:00:06]}  a4 {[%clk 0:00:04]} 85. Kf3 {[%clk 0:00:06]}  Rxh6 {[%clk 0:00:04]} 86. Ke3 {[%clk 0:00:07]}  Rh3+ {[%clk 0:00:04]} 87. Kd4 {[%clk 0:00:07]}  Rh2 {[%clk 0:00:05]} 88. Kc3 {[%clk 0:00:07]}  Rc2+ {[%clk 0:00:05]} 0-1


[Site "https://www.chess.com"]

[Event "Titled Tuesday Blitz December 7 2021"]
[White "Samadov, Read"]
[Black "Blohberger, Felix"]
[WhiteFideId "13417444"]
[BlackFideId "1632051"]
[WhiteElo "2084"]
[BlackElo "2416"]
[Result "1-0"]
[Round "05"]
[TimeControl "180+1"]
[Date "2021.12.07"]
[WhiteClock "0:00:06"]
[BlackClock "0:00:01"]

1. d4 {[%clk 0:03:00]}  Nf6 {[%clk 0:02:56]} 2. c4 {[%clk 0:03:01]}  e6 {[%clk 0:02:55]} 3. Nf3 {[%clk 0:03:00]}  Bb4+ {[%clk 0:02:51]} 4. Nbd2 {[%clk 0:02:58]}  O-O {[%clk 0:02:49]} 5. a3 {[%clk 0:02:57]}  Be7 {[%clk 0:02:49]} 6. e4 {[%clk 0:02:56]}  d6 {[%clk 0:02:50]} 7. Bd3 {[%clk 0:02:56]}  a5 {[%clk 0:02:50]} 8. O-O {[%clk 0:02:54]}  Nc6 {[%clk 0:02:50]} 9. d5 {[%clk 0:02:51]}  Ne5 {[%clk 0:02:49]} 10. Nxe5 {[%clk 0:02:50]}  dxe5 {[%clk 0:02:50]} 11. b3 {[%clk 0:02:39]}  c6 {[%clk 0:02:41]} 12. Bb2 {[%clk 0:02:31]}  exd5 {[%clk 0:02:38]} 13. exd5 {[%clk 0:02:32]}  cxd5 {[%clk 0:02:37]} 14. Bxe5 {[%clk 0:02:32]}  dxc4 {[%clk 0:02:31]} 15. Nxc4 {[%clk 0:02:31]}  Be6 {[%clk 0:02:26]} 16. Qf3 {[%clk 0:02:15]}  b5 {[%clk 0:02:12]} 17. Nd2 {[%clk 0:01:58]}  Qb6 {[%clk 0:02:02]} 18. Ne4 {[%clk 0:01:46]}  Nxe4 {[%clk 0:01:43]} 19. Qxe4 {[%clk 0:01:45]}  g6 {[%clk 0:01:27]} 20. Bd4 {[%clk 0:01:38]}  Qb8 {[%clk 0:01:27]} 21. Qe3 {[%clk 0:01:25]}  Bd6 {[%clk 0:01:21]} 22. Qh6 {[%clk 0:01:20]}  Be5 {[%clk 0:01:18]} 23. Bxe5 {[%clk 0:01:04]}  Qxe5 {[%clk 0:01:19]} 24. Rae1 {[%clk 0:01:01]}  Qc5 {[%clk 0:01:09]} 25. Re4 {[%clk 0:00:47]}  Qc3 {[%clk 0:00:54]} 26. Bxb5 {[%clk 0:00:39]}  Bxb3 {[%clk 0:00:42]} 27. Re3 {[%clk 0:00:35]}  Qd2 {[%clk 0:00:34]} 28. Qh4 {[%clk 0:00:25]}  Be6 {[%clk 0:00:30]} 29. Qf6 {[%clk 0:00:19]}  Rab8 {[%clk 0:00:27]} 30. a4 {[%clk 0:00:19]}  Rfd8 {[%clk 0:00:20]} 31. h4 {[%clk 0:00:16]}  Qd4 {[%clk 0:00:20]} 32. Qg5 {[%clk 0:00:15]}  Rd5 {[%clk 0:00:18]} 33. Qg3 {[%clk 0:00:15]}  Rbd8 {[%clk 0:00:16]} 34. Rd3 {[%clk 0:00:14]}  Qf6 {[%clk 0:00:08]} 35. Rxd5 {[%clk 0:00:13]}  Rxd5 {[%clk 0:00:08]} 36. Re1 {[%clk 0:00:12]}  Kg7 {[%clk 0:00:08]} 37. Bc4 {[%clk 0:00:10]}  Rd4 {[%clk 0:00:03]} 38. Bxe6 {[%clk 0:00:10]}  fxe6 {[%clk 0:00:04]} 39. h5 {[%clk 0:00:08]}  Rxa4 {[%clk 0:00:03]} 40. Qc7+ {[%clk 0:00:07]}  Kh6 {[%clk 0:00:03]} 41. hxg6 {[%clk 0:00:07]}  Ra1 {[%clk 0:00:03]} 42. Qxh7+ {[%clk 0:00:04]}  Kg5 {[%clk 0:00:03]} 43. Rxa1 {[%clk 0:00:04]}  Qxa1+ {[%clk 0:00:04]} 44. Kh2 {[%clk 0:00:05]}  Qe5+ {[%clk 0:00:04]} 45. g3 {[%clk 0:00:05]}  Qf6 {[%clk 0:00:05]} 46. f4+ {[%clk 0:00:05]}  Kg4 {[%clk 0:00:01]} 47. Qh4+ {[%clk 0:00:05]}  Qxh4+ {[%clk 0:00:01]} 48. gxh4 {[%clk 0:00:06]}  a4 {[%clk 0:00:01]} 49. g7 {[%clk 0:00:06]} 1-0


[Site "https://www.chess.com"]

[Event "Titled Tuesday Blitz December 7 2021"]
[White "Saydaliev, Saidakbar"]
[Black "Myshakov, Fyodor"]
[WhiteFideId "14203693"]
[BlackFideId "14111284"]
[WhiteElo "2279"]
[BlackElo "2310"]
[Result "1-0"]
[Round "05"]
[TimeControl "180+1"]
[Date "2021.12.07"]
[WhiteClock "0:00:37"]
[BlackClock "0:00:01"]

1. d4 {[%clk 0:03:00]}  d5 {[%clk 0:02:59]} 2. c4 {[%clk 0:03:00]}  dxc4 {[%clk 0:02:59]} 3. e4 {[%clk 0:03:01]}  Nf6 {[%clk 0:02:59]} 4. e5 {[%clk 0:03:01]}  Nd5 {[%clk 0:02:58]} 5. Bxc4 {[%clk 0:03:01]}  c6 {[%clk 0:02:58]} 6. Nc3 {[%clk 0:02:46]}  Nb6 {[%clk 0:02:55]} 7. Bb3 {[%clk 0:02:42]}  Bf5 {[%clk 0:02:52]} 8. h4 {[%clk 0:02:36]}  h6 {[%clk 0:02:40]} 9. g4 {[%clk 0:02:31]}  Bh7 {[%clk 0:02:35]} 10. e6 {[%clk 0:02:31]}  fxe6 {[%clk 0:02:28]} 11. Bf4 {[%clk 0:02:31]}  Nd5 {[%clk 0:02:26]} 12. Be5 {[%clk 0:02:31]}  Nd7 {[%clk 0:02:23]} 13. Qe2 {[%clk 0:02:31]}  Nxe5 {[%clk 0:02:23]} 14. Qxe5 {[%clk 0:02:25]}  Qd6 {[%clk 0:02:19]} 15. Nf3 {[%clk 0:02:18]}  O-O-O {[%clk 0:02:03]} 16. O-O {[%clk 0:02:03]}  Rg8 {[%clk 0:01:55]} 17. Rfe1 {[%clk 0:02:02]}  g5 {[%clk 0:01:45]} 18. hxg5 {[%clk 0:01:45]}  Bg7 {[%clk 0:01:21]} 19. Qxe6+ {[%clk 0:01:44]}  Qxe6 {[%clk 0:01:14]} 20. Rxe6 {[%clk 0:01:45]}  hxg5 {[%clk 0:01:01]} 21. Bxd5 {[%clk 0:01:29]}  cxd5 {[%clk 0:00:56]} 22. Rxe7 {[%clk 0:01:30]}  Be4 {[%clk 0:00:52]} 23. Nxe4 {[%clk 0:01:29]}  dxe4 {[%clk 0:00:52]} 24. Rxe4 {[%clk 0:01:30]}  Rgf8 {[%clk 0:00:48]} 25. Kg2 {[%clk 0:01:26]}  Rd7 {[%clk 0:00:37]} 26. Nxg5 {[%clk 0:01:26]}  Bxd4 {[%clk 0:00:30]} 27. Rxd4 {[%clk 0:01:26]}  Rxd4 {[%clk 0:00:29]} 28. f3 {[%clk 0:01:15]}  Rd2+ {[%clk 0:00:26]} 29. Kg3 {[%clk 0:01:15]}  Rxb2 {[%clk 0:00:25]} 30. Ne4 {[%clk 0:01:12]}  b5 {[%clk 0:00:17]} 31. g5 {[%clk 0:01:11]}  a5 {[%clk 0:00:17]} 32. f4 {[%clk 0:01:09]}  b4 {[%clk 0:00:13]} 33. g6 {[%clk 0:01:08]}  Re2 {[%clk 0:00:10]} 34. Kf3 {[%clk 0:01:02]}  Rh2 {[%clk 0:00:09]} 35. Rg1 {[%clk 0:00:58]}  Kd7 {[%clk 0:00:08]} 36. g7 {[%clk 0:00:58]}  Ra8 {[%clk 0:00:07]} 37. f5 {[%clk 0:00:45]}  a4 {[%clk 0:00:06]} 38. g8=Q {[%clk 0:00:41]}  Rxg8 {[%clk 0:00:05]} 39. Rxg8 {[%clk 0:00:42]}  Rxa2 {[%clk 0:00:05]} 40. Rb8 {[%clk 0:00:43]}  b3 {[%clk 0:00:05]} 41. f6 {[%clk 0:00:42]}  Ke6 {[%clk 0:00:05]} 42. Rb6+ {[%clk 0:00:42]}  Kf7 {[%clk 0:00:06]} 43. Rb7+ {[%clk 0:00:43]}  Kg6 {[%clk 0:00:04]} 44. f7 {[%clk 0:00:43]}  Kg7 {[%clk 0:00:04]} 45. Ng5 {[%clk 0:00:42]}  Ra1 {[%clk 0:00:03]} 46. Ne6+ {[%clk 0:00:42]}  Kg6 {[%clk 0:00:02]} 47. Kg2 {[%clk 0:00:37]}  Ra2+ {[%clk 0:00:02]} 48. Kg3 {[%clk 0:00:38]}  b2 {[%clk 0:00:01]} 49. f8=Q {[%clk 0:00:37]}  Ra3+ {[%clk 0:00:02]} 50. Kg4 {[%clk 0:00:37]}  Rg3+ {[%clk 0:00:01]} 51. Kxg3 {[%clk 0:00:37]} 1-0


[Site "https://www.chess.com"]

[Event "Titled Tuesday Blitz December 7 2021"]
[White "Shipov, Sergei"]
[Black "Arencibia Monduy, Antonio"]
[WhiteFideId "4113624"]
[BlackFideId "3507939"]
[WhiteElo "2760"]
[BlackElo "2598"]
[Result "0-1"]
[Round "05"]
[TimeControl "180+1"]
[Date "2021.12.07"]
[WhiteClock "0:00:33"]
[BlackClock "0:00:03"]

1. d4 {[%clk 0:02:58]}  Nf6 {[%clk 0:02:59]} 2. c4 {[%clk 0:02:58]}  e6 {[%clk 0:03:00]} 3. Nc3 {[%clk 0:02:58]}  d5 {[%clk 0:03:00]} 4. cxd5 {[%clk 0:02:58]}  exd5 {[%clk 0:03:00]} 5. Bg5 {[%clk 0:02:59]}  Be7 {[%clk 0:02:59]} 6. e3 {[%clk 0:02:59]}  c6 {[%clk 0:03:00]} 7. Qc2 {[%clk 0:02:58]}  O-O {[%clk 0:03:00]} 8. Bd3 {[%clk 0:02:58]}  Nbd7 {[%clk 0:02:58]} 9. Nf3 {[%clk 0:02:57]}  Re8 {[%clk 0:02:57]} 10. Bf4 {[%clk 0:02:54]}  Nf8 {[%clk 0:02:56]} 11. h3 {[%clk 0:02:55]}  Bd6 {[%clk 0:02:42]} 12. Bxd6 {[%clk 0:02:55]}  Qxd6 {[%clk 0:02:42]} 13. O-O-O {[%clk 0:02:55]}  b5 {[%clk 0:02:37]} 14. Kb1 {[%clk 0:02:55]}  a5 {[%clk 0:02:35]} 15. Rc1 {[%clk 0:02:56]}  Bb7 {[%clk 0:02:25]} 16. g4 {[%clk 0:02:51]}  N6d7 {[%clk 0:02:21]} 17. h4 {[%clk 0:02:45]}  Nb6 {[%clk 0:02:21]} 18. g5 {[%clk 0:02:43]}  a4 {[%clk 0:02:16]} 19. Ne2 {[%clk 0:02:38]}  b4 {[%clk 0:02:12]} 20. Qc5 {[%clk 0:02:38]}  Qxc5 {[%clk 0:02:01]} 21. Rxc5 {[%clk 0:02:11]}  Nc4 {[%clk 0:01:36]} 22. Bxc4 {[%clk 0:01:53]}  dxc4 {[%clk 0:01:31]} 23. Nf4 {[%clk 0:01:54]}  Nd7 {[%clk 0:01:25]} 24. Rxc4 {[%clk 0:01:54]}  c5 {[%clk 0:01:25]} 25. d5 {[%clk 0:01:54]}  Ba6 {[%clk 0:01:08]} 26. Rcc1 {[%clk 0:01:50]}  c4 {[%clk 0:01:08]} 27. Rhd1 {[%clk 0:01:38]}  Rac8 {[%clk 0:00:57]} 28. Rd4 {[%clk 0:01:37]}  Nc5 {[%clk 0:00:44]} 29. d6 {[%clk 0:01:34]}  Red8 {[%clk 0:00:45]} 30. Nd5 {[%clk 0:01:33]}  Ne6 {[%clk 0:00:30]} 31. Ne7+ {[%clk 0:01:28]}  Kf8 {[%clk 0:00:30]} 32. Nxc8 {[%clk 0:01:27]}  Nxd4 {[%clk 0:00:31]} 33. Nxd4 {[%clk 0:01:26]}  Rxc8 {[%clk 0:00:29]} 34. Rd1 {[%clk 0:01:20]}  Ke8 {[%clk 0:00:21]} 35. Nc2 {[%clk 0:01:17]}  Rb8 {[%clk 0:00:18]} 36. d7+ {[%clk 0:01:07]}  Kd8 {[%clk 0:00:18]} 37. Rd6 {[%clk 0:01:07]}  Bb5 {[%clk 0:00:17]} 38. Nd4 {[%clk 0:01:08]}  Rb7 {[%clk 0:00:14]} 39. Kc2 {[%clk 0:01:01]}  Bxd7 {[%clk 0:00:12]} 40. Rd5 {[%clk 0:00:57]}  Ke7 {[%clk 0:00:10]} 41. f4 {[%clk 0:00:55]}  b3+ {[%clk 0:00:08]} 42. axb3 {[%clk 0:00:55]}  cxb3+ {[%clk 0:00:09]} 43. Kc3 {[%clk 0:00:55]}  Rc7+ {[%clk 0:00:09]} 44. Kd3 {[%clk 0:00:55]}  a3 {[%clk 0:00:09]} 45. Nxb3 {[%clk 0:00:46]}  Be6 {[%clk 0:00:08]} 46. Ra5 {[%clk 0:00:37]}  axb2 {[%clk 0:00:08]} 47. Nd2 {[%clk 0:00:37]}  Rd7+ {[%clk 0:00:08]} 48. Kc3 {[%clk 0:00:36]}  Rxd2 {[%clk 0:00:07]} 49. Rb5 {[%clk 0:00:37]}  Re2 {[%clk 0:00:03]} 50. Kd3 {[%clk 0:00:32]}  Rh2 {[%clk 0:00:03]} 51. e4 {[%clk 0:00:33]}  Ba2 {[%clk 0:00:03]} 0-1


[Site "https://www.chess.com"]

[Event "Titled Tuesday Blitz December 7 2021"]
[White "Shyaamnikhil P"]
[Black "Savchenko, Boris"]
[WhiteFideId "5024218"]
[BlackFideId "4147332"]
[WhiteElo "2300"]
[BlackElo "2499"]
[Result "0-1"]
[Round "05"]
[TimeControl "180+1"]
[Date "2021.12.07"]
[WhiteClock "0:01:37"]
[BlackClock "0:01:49"]

1. e3 {[%clk 0:03:00]}  c5 {[%clk 0:02:59]} 2. c4 {[%clk 0:03:00]}  Nf6 {[%clk 0:02:58]} 3. Nc3 {[%clk 0:03:00]}  e6 {[%clk 0:02:57]} 4. Nf3 {[%clk 0:03:00]}  a6 {[%clk 0:02:58]} 5. d4 {[%clk 0:02:59]}  d5 {[%clk 0:02:58]} 6. dxc5 {[%clk 0:02:57]}  Bxc5 {[%clk 0:02:58]} 7. a3 {[%clk 0:02:58]}  O-O {[%clk 0:02:53]} 8. b4 {[%clk 0:02:58]}  Ba7 {[%clk 0:02:54]} 9. Bb2 {[%clk 0:02:57]}  Nc6 {[%clk 0:02:54]} 10. Be2 {[%clk 0:02:55]}  d4 {[%clk 0:02:53]} 11. exd4 {[%clk 0:02:55]}  Nxd4 {[%clk 0:02:54]} 12. O-O {[%clk 0:02:54]}  Nxe2+ {[%clk 0:02:52]} 13. Qxe2 {[%clk 0:02:55]}  Qc7 {[%clk 0:02:49]} 14. c5 {[%clk 0:02:48]}  b6 {[%clk 0:02:50]} 15. Na4 {[%clk 0:02:47]}  bxc5 {[%clk 0:02:41]} 16. Bxf6 {[%clk 0:02:46]}  gxf6 {[%clk 0:02:41]} 17. Rac1 {[%clk 0:02:46]}  Bb7 {[%clk 0:02:38]} 18. Nxc5 {[%clk 0:02:45]}  Bxc5 {[%clk 0:02:36]} 19. Rxc5 {[%clk 0:02:46]}  Qf4 {[%clk 0:02:36]} 20. Qe3 {[%clk 0:02:42]}  Qxe3 {[%clk 0:02:33]} 21. fxe3 {[%clk 0:02:42]}  Rfc8 {[%clk 0:02:32]} 22. Nd4 {[%clk 0:02:41]}  Rxc5 {[%clk 0:02:31]} 23. bxc5 {[%clk 0:02:41]}  Rc8 {[%clk 0:02:31]} 24. Rc1 {[%clk 0:02:39]}  Bd5 {[%clk 0:02:27]} 25. c6 {[%clk 0:02:36]}  Kf8 {[%clk 0:02:22]} 26. c7 {[%clk 0:02:28]}  Ke7 {[%clk 0:02:22]} 27. Nc6+ {[%clk 0:02:28]}  Kd6 {[%clk 0:02:20]} 28. Nb4 {[%clk 0:02:28]}  Bb7 {[%clk 0:02:20]} 29. g3 {[%clk 0:02:10]}  Rxc7 {[%clk 0:02:18]} 30. Rxc7 {[%clk 0:02:10]}  Kxc7 {[%clk 0:02:19]} 31. Kf2 {[%clk 0:02:11]}  Kd6 {[%clk 0:02:19]} 32. Ke2 {[%clk 0:02:10]}  Kc5 {[%clk 0:02:19]} 33. Kd3 {[%clk 0:02:10]}  a5 {[%clk 0:02:11]} 34. Nc2 {[%clk 0:02:09]}  e5 {[%clk 0:02:12]} 35. e4 {[%clk 0:02:03]}  Kb5 {[%clk 0:01:57]} 36. Ne3 {[%clk 0:02:01]}  Ka4 {[%clk 0:01:56]} 37. Ng4 {[%clk 0:01:55]}  Kxa3 {[%clk 0:01:55]} 38. Nxf6 {[%clk 0:01:54]}  Kb2 {[%clk 0:01:52]} 39. Nd5 {[%clk 0:01:43]}  a4 {[%clk 0:01:51]} 40. Ne3 {[%clk 0:01:37]}  Ba6+ {[%clk 0:01:49]} 41. Kd2 {[%clk 0:01:37]}  a3 {[%clk 0:01:49]} 42. Nd1+ {[%clk 0:01:37]}  Kb3 {[%clk 0:01:49]} 0-1


[Site "https://www.chess.com"]